fUST/lending_fUST_20251114
["ID","MTS","AMOUNT","RATE_DAILY","PERIOD"]
[393887447,1763071751001,-598.05719705,0.00045184,7]
[393887449,1763071751022,-500.0,0.00045184,120]
[393887450,1763071751043,-500.0,0.00045184,120]
[393887452,1763071751065,-500.0,0.00045184,120]
[393887454,1763071751086,-476.51095923,0.00045184,120]
[393887903,1763071772120,-236.2,0.00045174,30]
[393887904,1763071772142,-897.05,0.00045174,10]
[393887906,1763071772163,-196.83,0.00045174,30]
[393887907,1763071772184,-747.54,0.00045174,10]
[393887909,1763071772205,-164.03,0.00045174,30]
[393887910,1763071772227,-23.48904077,0.00045184,120]
[393887912,1763071772252,-598.05719705,0.00045184,7]
[393887914,1763071772274,-500.0,0.00045184,120]
[393887915,1763071772295,-500.0,0.00045184,120]
[393887917,1763071772319,-598.05719705,0.00045184,7]
[393887918,1763071772341,-500.0,0.00045184,120]
[393887920,1763071772363,-500.0,0.00045184,120]
[393887921,1763071772384,-500.0,0.00045184,120]
[393887922,1763071772409,-598.05719705,0.00045184,7]
[393887924,1763071772430,-500.0,0.00045184,120]
[393887925,1763071772452,-500.0,0.00045184,120]
[393887927,1763071772472,-500.0,0.00045184,120]
[393887928,1763071772497,-598.05719705,0.00045184,7]
[393887930,1763071772519,-500.0,0.00045184,120]
[393887931,1763071772540,-500.0,0.00045184,120]
[393887933,1763071772565,-598.05719705,0.00045184,7]
[393887934,1763071772586,-500.0,0.00045184,120]
[393887936,1763071772608,-500.0,0.00045184,120]
[393887937,1763071772630,-500.0,0.00045184,120]
[393887939,1763071772655,-598.05719705,0.00045184,7]
[393887940,1763071772679,-500.0,0.00045184,120]
[393887942,1763071772700,-500.0,0.00045184,120]
[393887943,1763071772724,-598.05719705,0.00045184,7]
[393887945,1763071772745,-500.0,0.00045184,120]
[393887946,1763071772767,-500.0,0.00045184,120]
[393887948,1763071772793,-598.05719705,0.00045184,7]
[393887949,1763071772814,-500.0,0.00045184,120]
[393887951,1763071772835,-500.0,0.00045184,120]
[393887952,1763071772860,-598.05719705,0.00045184,7]
[393887954,1763071772882,-268.80689129,0.00045184,120]
[393888369,1763071792052,-1533.73160514,0.00045084,28]
[393888371,1763071792096,-622.95,0.00045174,10]
[393888373,1763071792135,-820.15,0.00045174,30]
[393888375,1763071792173,-519.12,0.00045174,10]
[393888377,1763071792212,-231.19310871,0.00045184,120]
[393888379,1763071792252,-500.0,0.00045184,120]
[393888381,1763071792295,-598.05719705,0.00045184,7]
[393888383,1763071792334,-500.0,0.00045184,120]
[393888385,1763071792480,-500.0,0.00045184,120]
[393888386,1763071792522,-500.0,0.00045184,120]
[393888388,1763071792565,-598.05719705,0.00045184,7]
[393888390,1763071792607,-598.05719705,0.00045184,7]
[393888392,1763071792648,-500.0,0.00045184,120]
[393888394,1763071792692,-598.05719705,0.00045184,7]
[393888396,1763071792730,-500.0,0.00045184,120]
[393888397,1763071792772,-500.0,0.00045184,120]
[393888399,1763071792809,-500.0,0.00045184,120]
[393888401,1763071792851,-598.05719705,0.00045184,7]
[393888403,1763071792888,-500.0,0.00045184,120]
[393888405,1763071792926,-500.0,0.00045184,120]
[393888406,1763071792969,-598.05719705,0.00045184,7]
[393888408,1763071793007,-500.0,0.00045184,120]
[393888410,1763071793049,-500.0,0.00045184,120]
[393888412,1763071793092,-598.05719705,0.00045184,7]
[393888414,1763071793130,-500.0,0.00045184,120]
[393888416,1763071793172,-598.05719705,0.00045184,7]
[393888417,1763071793211,-500.0,0.00045184,120]
[393888419,1763071793253,-598.05719705,0.00045184,7]
[393888421,1763071793291,-500.0,0.00045184,120]
[393888423,1763071793331,-500.0,0.00045184,120]
[393888425,1763071793376,-598.05719705,0.00045184,7]
[393888427,1763071793415,-375.90212868,0.00045184,120]
[393888428,1763071793460,-598.05719705,0.00045184,7]
[393888430,1763071793499,-500.0,0.00045184,120]
[393888432,1763071793542,-598.05719705,0.00045184,7]
[393888434,1763071793584,-598.05719705,0.00045184,7]
[393888436,1763071793626,-598.05719705,0.00045184,7]
[393888438,1763071793668,-598.05719705,0.00045184,7]
[393888440,1763071793712,-598.05719705,0.00045184,7]
[393888441,1763071793754,-598.05719705,0.00045184,7]
[393888445,1763071793869,-598.05719705,0.00045184,7]
[393888447,1763071793916,-598.05719705,0.00045184,7]
[393888449,1763071793964,-598.05719705,0.00045184,7]
[393888450,1763071794008,-598.05719705,0.00045184,7]
[393888452,1763071794053,-598.05719705,0.00045184,7]
[393888454,1763071794096,-598.05719705,0.00045184,7]
[393888456,1763071794151,-598.05719705,0.00045184,7]
[393888458,1763071794205,-598.05719705,0.00045184,7]
[393888460,1763071794256,-500.0,0.00045184,120]
[393888462,1763071794301,-598.05719705,0.00045184,7]
[393888464,1763071794345,-598.05719705,0.00045184,7]
[393888466,1763071794388,-598.05719705,0.00045184,7]
[393888468,1763071794431,-598.05719705,0.00045184,7]
[393888470,1763071794474,-598.05719705,0.00045184,7]
[393888472,1763071794517,-598.05719705,0.00045184,7]
[393888474,1763071794560,-598.05719705,0.00045184,7]
[393888476,1763071794602,-598.05719705,0.00045184,7]
[393888478,1763071794638,-500.0,0.00045184,120]
[393888479,1763071794675,-506.36584988,0.00045184,120]
[393888481,1763071794713,-500.0,0.00045184,120]
[393888483,1763071794755,-3231.34091051,0.00045184,7]
[393888485,1763071794800,-3231.34091051,0.00045184,7]
[393888487,1763071794845,-3231.34091051,0.00045184,7]
[393888489,1763071794888,-3231.34091051,0.00045184,7]
[393888491,1763071794929,-3231.34091051,0.00045184,7]
[393888493,1763071794974,-500.0,0.00045184,120]
[393888494,1763071795019,-3231.34091051,0.00045184,7]
[393888496,1763071795061,-3231.34091051,0.00045184,7]
[393888498,1763071795098,-500.0,0.00045184,120]
[393888500,1763071795139,-3231.34091051,0.00045184,7]
[393888502,1763071795180,-3231.34091051,0.00045184,7]
[393888504,1763071795216,-500.0,0.00045184,120]
[393888506,1763071795258,-3231.34091051,0.00045184,7]
[393888508,1763071795300,-3231.34091051,0.00045184,7]
[393888509,1763071795338,-500.0,0.00045184,120]
[393888511,1763071795379,-3231.34091051,0.00045184,7]
[393888513,1763071795419,-3231.34091051,0.00045184,7]
[393888515,1763071795462,-3231.34091051,0.00045184,7]
[393888517,1763071795504,-3231.34091051,0.00045184,7]
[393888521,1763071795636,-3231.34091051,0.00045184,7]
[393888523,1763071795680,-3231.34091051,0.00045184,7]
[393888525,1763071795722,-3231.34091051,0.00045184,7]
[393888527,1763071795764,-3231.34091051,0.00045184,7]
[393888529,1763071795806,-3231.34091051,0.00045184,7]
[393888531,1763071795844,-200.0,0.00045184,120]
[393888533,1763071795886,-3231.34091051,0.00045184,7]
[393888534,1763071795924,-500.0,0.00045184,120]
[393888536,1763071795970,-3231.34091051,0.00045184,7]
[393888537,1763071796013,-3231.34091051,0.00045184,7]
[393888538,1763071796058,-3231.34091051,0.00045184,7]
[393888539,1763071796099,-3231.34091051,0.00045184,7]
[393888541,1763071796140,-3231.34091051,0.00045184,7]
[393888542,1763071796182,-3231.34091051,0.00045184,7]
[393888544,1763071796223,-3231.34091051,0.00045184,7]
[393888546,1763071796264,-3231.34091051,0.00045184,7]
[393888548,1763071796305,-3231.34091051,0.00045184,7]
[393888550,1763071796346,-3231.34091051,0.00045184,7]
[393888552,1763071796387,-3231.34091051,0.00045184,7]
[393888554,1763071796427,-3231.34091051,0.00045184,7]
[393888556,1763071796469,-3231.34091051,0.00045184,7]
[393888557,1763071796510,-3231.34091051,0.00045184,7]
[393888559,1763071796547,-11099.00037563,0.00045184,2]
[393888561,1763071796585,-762.56512292,0.00045185,30]
[393888627,1763071799807,-477.83,0.00045174,10]
[393888628,1763071799817,-514.57487708,0.00045185,30]
[393888629,1763071799852,150.0,0.00041694,2]
[393889252,1763071832596,-398.19,0.00045175,10]
[393889253,1763071832605,-331.82,0.00045175,10]
[393889255,1763071832615,-276.52,0.00045175,10]
[393889256,1763071832624,-151.0,0.00045184,30]
[393889257,1763071832633,-156.587,0.00045184,30]
[393889258,1763071832642,-162.380719,0.00045184,30]
[393889260,1763071832651,-168.3888056,0.00045184,30]
[393889261,1763071832661,-165.66258712,0.00045184,30]
[393889262,1763071832675,-8.95660429,0.00045184,30]
[393889263,1763071832685,-181.08010149,0.00045184,30]
[393889265,1763071832694,-187.78006525,0.00045184,30]
[393889266,1763071832703,-194.72792766,0.00045184,30]
[393889267,1763071832713,-201.93286099,0.00045184,30]
[393889268,1763071832722,-209.40437684,0.00045184,30]
[393889270,1763071832731,-217.15233878,0.00045184,30]
[393889271,1763071832740,-225.18697532,0.00045184,30]
[393889272,1763071832749,-233.51889341,0.00045184,30]
[393889273,1763071832759,-242.15909246,0.00045184,30]
[393889275,1763071832767,-251.11897888,0.00045184,30]
[393889276,1763071832776,-260.4103811,0.00045184,30]
[393889277,1763071832785,-270.0455652,0.00045184,30]
[393889278,1763071832795,-280.03725112,0.00045184,30]
[393889280,1763071832805,-290.39862941,0.00045184,30]
[393889281,1763071832818,-301.1433787,0.00045184,30]
[393889282,1763071832827,-302.23274526,0.00045184,7]
[393889283,1763071832837,-477.83,0.00045185,30]
[393889284,1763071832846,-1462.48,0.00045185,30]
[393889286,1763071832855,-1218.73,0.00045185,30]
[393889287,1763071832866,-1015.61,0.00045185,30]
[393889288,1763071832875,-846.34,0.00045185,30]
[393889289,1763071832885,-705.28,0.00045185,30]
[393889291,1763071832896,-587.74,0.00045185,30]
[393889292,1763071832906,-74051.998779,0.00045185,3]
[393889293,1763071832917,-32296.118214,0.00045185,3]
[393889294,1763071832927,-211.09976648,0.00045185,3]
[393889296,1763071832937,-35449.3723308,0.00045187,3]
[393889297,1763071832947,-141797.489323,0.00045197,3]
[393889298,1763071832960,-844.39906592,0.00045197,3]
[393889299,1763071832969,-41093.30713001,0.00045207,2]
[393889476,1763071839423,-230.43,0.00045197,10]
[393889477,1763071839432,-555.402289,0.00045207,2]
[393889478,1763071839444,-21797.71477742,0.00045207,2]
[393889479,1763071839455,-344.70233609,0.00045207,2]
[393889488,1763071839784,-37152.49671943,0.00045207,2]
[393889490,1763071839802,-154225.7669535,0.00045207,2]
[393889491,1763071839820,-2507.77514775,0.00045207,2]
[393889493,1763071839836,-65739.70481621,0.00045207,2]
[393889523,1763071840693,-11163.47274094,0.00045207,2]
[393889525,1763071840705,-10507.0,0.00045207,2]
[393889527,1763071840754,-546.75,0.00045207,2]
[393889528,1763071840765,-13309.68828719,0.00045207,2]
[393889530,1763071840776,-103738.89438584,0.00045207,2]
[393889531,1763071840787,-67141.05906251,0.00045207,2]
[393889570,1763071842333,5498.08009921,0.0003799,2]
[393889729,1763071847982,-349.54,0.00045197,30]
[393889730,1763071847991,-860.90896996,0.00045207,2]
[393889732,1763071848029,-4078.56865427,0.00045207,2]
[393889733,1763071848042,-2604.90877199,0.00045207,2]
[393890115,1763071863984,150.0,0.00030628,2]
[393890125,1763071864388,150.0,0.00033413,2]
[393890136,1763071864790,150.0,0.00036197,2]
[393890147,1763071865187,150.0,0.00038981,2]
[393890159,1763071865599,150.0,0.00041766,2]
[393890329,1763071872596,9855.64913565,0.0004322,30]
[393890729,1763071891745,517.02,0.00042,2]
[393890925,1763071903721,178.327,0.00037588,49]
[393890940,1763071930276,150.0,0.00030638,2]
[393890941,1763071930683,150.0,0.00033423,2]
[393890942,1763071936877,259.79409571,0.00025243,2]
[393890943,1763071937534,259.79409571,0.0003818,2]
[393890944,1763071937565,171.3957677,0.00030876,2]
[393890945,1763071938187,171.3957677,0.0004147,2]
[393890946,1763071943010,231.03087375,0.00025243,2]
[393890947,1763071943362,231.03087375,0.00031711,2]
[393890948,1763071944042,231.03087375,0.0003818,2]
[393890949,1763071953977,164.907873,0.0003645,20]
[393890950,1763071965393,156.22,0.00036936,60]
[393890951,1763071965477,156.22261994,0.00037236,60]
[393890952,1763071967504,166.88718133,0.000329,120]
[393890953,1763071967795,156.22,0.00037036,60]
[393890954,1763071968183,166.88718133,0.000339,120]
[393890955,1763071968214,156.22,0.00037136,60]
[393890956,1763071968838,166.88718133,0.000349,120]
[393890962,1763072067699,177.02,0.00042,2]
[393890963,1763072093255,171.909955,0.0004029,2]
[393890964,1763072100908,400.0,0.00042,2]
[393890965,1763072146434,500.0,0.00042,60]
[393890966,1763072149389,500.0,0.00042,60]
[393890968,1763072152993,500.0,0.00042,60]
[393890969,1763072157655,500.0,0.00042,60]
[393890970,1763072189745,3123.72063861,0.00037676,2]
[393890971,1763072189769,6119.76111639,0.00037676,2]
[393890972,1763072206633,500.0,0.00041,60]
[393890973,1763072216152,500.0,0.00041,60]
[393890974,1763072301281,500.0,0.00041,60]
[393890975,1763072305451,500.0,0.00041,60]
[393890997,1763072382583,500.0,0.00041,60]
[393890998,1763072412834,504.6246832,0.00039219,2]
[393890999,1763072413174,300.0,0.00041,20]
[393891003,1763072422667,300.0,0.00041,7]
[393891004,1763072432381,279.0,0.00041,2]
[393891006,1763072460020,500.0,0.00041,60]
[393891031,1763072614964,164.907873,0.0003645,20]
[393891033,1763072688477,500.0,0.00041,120]
[393891034,1763072694828,500.0,0.00041,120]
[393891035,1763072700469,519.0,0.00041,120]
[393891046,1763072740966,621.256316,0.00038205,2]
[393891055,1763072825105,-500.0,0.000411,60]
[393891056,1763072825125,-162.0,0.00041281,120]
[393891057,1763072825146,-2200.0,0.00041457,5]
[393891058,1763072825166,-1021.57267477,0.00041564,2]
[393891059,1763072835842,500.83556389,0.00039659,120]
[393891060,1763072848123,-298.53788391,0.00042046,28]
[393891062,1763072860146,5396.15650248,0.00039659,30]
[393891063,1763072870949,12191.45001141,0.00034,2]
[393891064,1763072870973,24048.55114511,0.00034,2]
[393891067,1763072893741,41139.08769991,0.00039659,120]
[393891069,1763072894366,240.84628688,0.00025243,2]
[393891070,1763072894980,240.84628688,0.0003734,2]
[393891071,1763072895511,9291.18586265,0.0002876,2]
[393891073,1763072902631,29225.46312915,0.00039659,30]
[393891074,1763072904507,951.44885489,0.00034,2]
[393891075,1763072904534,58.77852302,0.00034,2]
[393891077,1763072905622,1334.81375183,0.00038998,2]
[393891081,1763072909340,6000.0,0.00026,30]
[393891082,1763072912977,15717.37148549,0.00033,2]
[393891096,1763072915164,1160.9764545,0.0003112,2]
[393891097,1763072916214,728.05978516,0.000319,2]
[393891098,1763072916238,25000.0,0.000319,2]
[393891099,1763072916261,18035.84081867,0.000319,2]
[393891100,1763072917768,10000.01,0.0003295,2]
[393891101,1763072917790,40.29878212,0.0003295,2]
[393891103,1763072917957,5081.68522134,0.0003398,2]
[393891104,1763072918593,153.0261583,0.00039659,120]
[393891105,1763072960123,-150.08432055,0.0004082,2]
[393891106,1763072960145,-270.15177699,0.0004082,2]
[393891107,1763072960166,-480.26982577,0.0004082,2]
[393891108,1763072960185,-198.85443633,0.000418,60]
[393891109,1763072960206,-1313.33427374,0.00042046,28]
[393891110,1763072960224,-708.19,0.00042849,120]
[393891111,1763072960245,-340.59,0.00042857,30]
[393891112,1763072960266,-1125.29,0.00042857,10]
[393891113,1763072960288,-283.83,0.00042857,30]
[393891114,1763072960315,-2145.85,0.00042857,10]
[393891115,1763072960334,-236.52,0.00042857,30]
[393891116,1763072960354,-490.46,0.00042858,30]
[393891117,1763072960372,-408.71,0.00042858,30]
[393891118,1763072960393,-25975.59336226,0.00042858,2]
[393891119,1763072962080,-13858.32336371,0.00042858,2]
[393891120,1763072962100,-500.0,0.00042867,31]
[393891121,1763072962120,-500.0,0.00042867,31]
[393891122,1763072962142,-500.0,0.00042867,31]
[393891123,1763072962163,-240.12000701,0.00042867,31]
[393891124,1763072962185,-500.0,0.00042867,31]
[393891125,1763072962207,-389.41562691,0.00042867,31]
[393891126,1763072962233,-1528.30714806,0.00042867,7]
[393891127,1763072962255,-500.0,0.00042867,31]
[393891128,1763072962274,-506.36584988,0.00042867,31]
[393891129,1763072962295,-542.42633907,0.00042867,31]
[393891130,1763072962320,-500.0,0.00042867,31]
[393891131,1763072962343,-500.0,0.00042867,31]
[393891132,1763072962364,-500.0,0.00042867,31]
[393891133,1763072962387,-500.0,0.00042867,31]
[393891134,1763072962411,-1528.30714806,0.00042867,7]
[393891135,1763072962433,-500.0,0.00042867,31]
[393891136,1763072962453,-500.0,0.00042867,31]
[393891137,1763072962476,-500.0,0.00042867,31]
[393891138,1763072962496,-318.25633827,0.00042867,31]
[393891139,1763072962521,-1528.30714806,0.00042867,7]
[393891140,1763072962541,-500.0,0.00042867,31]
[393891141,1763072962562,-500.0,0.00042867,31]
[393891142,1763072962582,-500.0,0.00042867,31]
[393891143,1763072962607,-764.68518926,0.00042867,7]
[393891144,1763072963101,-763.6219588,0.00042867,7]
[393891145,1763072963126,-500.0,0.00042867,31]
[393891146,1763072963151,-500.0,0.00042867,31]
[393891147,1763072963173,-500.0,0.00042867,31]
[393891148,1763072963196,-500.0,0.00042867,31]
[393891149,1763072963223,-1528.30714806,0.00042867,7]
[393891150,1763072963338,-500.0,0.00042867,31]
[393891151,1763072963360,-500.0,0.00042867,31]
[393891152,1763072963388,-1528.30714806,0.00042867,7]
[393891153,1763072963410,-500.0,0.00042867,31]
[393891154,1763072963442,-450.2322833,0.00042867,31]
[393891155,1763072963470,-500.0,0.00042867,31]
[393891156,1763072963497,-1528.30714806,0.00042867,7]
[393891157,1763072963520,-500.0,0.00042867,31]
[393891158,1763072963547,-1528.30714806,0.00042867,7]
[393891159,1763072963570,-500.0,0.00042867,31]
[393891160,1763072963591,-500.0,0.00042867,31]
[393891161,1763072963614,-500.0,0.00042867,31]
[393891162,1763072963637,-500.0,0.00042867,31]
[393891163,1763072963667,-1528.30714806,0.00042867,7]
[393891164,1763072963689,-500.0,0.00042867,31]
[393891165,1763072963711,-500.0,0.00042867,31]
[393891166,1763072963734,-500.0,0.00042867,31]
[393891167,1763072963760,-1528.30714806,0.00042867,7]
[393891168,1763072963782,-500.0,0.00042867,31]
[393891169,1763072963806,-87.50911856,0.00042867,31]
[393891170,1763072977954,-4663.32932527,0.0003999,2]
[393891171,1763072978051,-10000.01,0.0003999,2]
[393891172,1763072980539,-10000.01,0.0003999,2]
[393891173,1763072980786,-1439.78881545,0.0003999,2]
[393891209,1763073031737,-9162.76625974,0.00039659,14]
[393891211,1763073031747,-180.36,0.00042857,2]
[393891213,1763073031758,-180.36,0.00042857,2]
[393891215,1763073031766,-197.1,0.00042857,30]
[393891216,1763073031775,-164.25,0.00042857,30]
[393891218,1763073031785,-821.3,0.00042857,30]
[393891220,1763073031794,-1788.2,0.00042857,10]
[393891222,1763073031803,-1490.17,0.00042857,10]
[393891223,1763073031811,-1044.27921348,0.00042857,10]
[393891303,1763073037930,-180.36,0.00042858,2]
[393891304,1763073037939,-180.36,0.00042858,2]
[393891305,1763073037949,-286.78843123,0.00042866,31]
[393891306,1763073037959,-437.78735173,0.00042866,7]
[393891307,1763073037968,-500.0,0.00042866,31]
[393891308,1763073037978,-500.0,0.00042866,31]
[393891309,1763073037987,-153.06742712,0.00042866,31]
[393891310,1763073037996,-500.0,0.00042866,31]
[393891311,1763073038006,-500.0,0.00042866,31]
[393891312,1763073038015,-1721.93402262,0.00042866,7]
[393891313,1763073038024,-500.0,0.00042866,31]
[393891314,1763073038034,-500.0,0.00042866,31]
[393891315,1763073038044,-1721.93402262,0.00042866,7]
[393891316,1763073038054,-500.0,0.00042866,31]
[393891317,1763073038064,-500.0,0.00042866,31]
[393891318,1763073038073,-1721.93402262,0.00042866,7]
[393891319,1763073038082,-452.51472206,0.00042866,31]
[393891365,1763073039902,-47.48527794,0.00042866,31]
[393891367,1763073039911,-295.02322833,0.00042866,31]
[393891369,1763073039921,-1721.93402262,0.00042866,7]
[393891370,1763073039930,-500.0,0.00042866,31]
[393891372,1763073039939,-1721.93402262,0.00042866,7]
[393891374,1763073039949,-500.0,0.00042866,31]
[393891376,1763073039957,-1345.5268236,0.00042866,7]
[393891382,1763073040051,-33.17087599,0.00042866,7]
[393891384,1763073040063,-343.23632303,0.00042866,7]
[393891386,1763073040073,-1721.93402262,0.00042866,7]
[393891388,1763073040082,-1721.93402262,0.00042866,7]
[393891389,1763073040091,-1721.93402262,0.00042866,7]
[393891391,1763073040101,-1721.93402262,0.00042866,7]
[393891392,1763073040110,-1721.93402262,0.00042866,7]
[393891394,1763073040119,-1721.93402262,0.00042866,7]
[393891396,1763073040128,-1721.93402262,0.00042866,7]
[393891397,1763073040138,-1721.93402262,0.00042866,7]
[393891398,1763073040147,-1721.93402262,0.00042866,7]
[393891399,1763073040158,-1721.93402262,0.00042866,7]
[393891400,1763073040167,-1721.93402262,0.00042866,7]
[393891401,1763073040176,-1721.93402262,0.00042866,7]
[393891402,1763073040185,-1721.93402262,0.00042866,7]
[393891403,1763073040195,-1721.93402262,0.00042866,7]
[393891404,1763073040204,-1721.93402262,0.00042866,7]
[393891405,1763073040214,-1721.93402262,0.00042866,7]
[393891406,1763073040224,-1721.93402262,0.00042866,7]
[393891407,1763073040233,-1721.93402262,0.00042866,7]
[393891408,1763073040251,-1721.93402262,0.00042866,7]
[393891409,1763073040262,-1721.93402262,0.00042866,7]
[393891410,1763073040273,-1721.93402262,0.00042866,7]
[393891411,1763073040283,-1721.93402262,0.00042866,7]
[393891412,1763073040292,-1721.93402262,0.00042866,7]
[393891413,1763073040303,-1721.93402262,0.00042866,7]
[393891414,1763073040313,-1721.93402262,0.00042866,7]
[393891415,1763073040326,-1499.12087796,0.00042866,7]
[393891550,1763073043333,-1067.76,0.00042858,10]
[393891553,1763073043343,-222.81314466,0.00042866,7]
[393891556,1763073043352,-1721.93402262,0.00042866,7]
[393891558,1763073043363,-1721.93402262,0.00042866,7]
[393891560,1763073043372,-1721.93402262,0.00042866,7]
[393891562,1763073043381,-1721.93402262,0.00042866,7]
[393891564,1763073043390,-1721.93402262,0.00042866,7]
[393891567,1763073043401,-1721.93402262,0.00042866,7]
[393891569,1763073043411,-87138.3778311,0.00042868,3]
[393891571,1763073043421,-1757.39,0.00042868,30]
[393891573,1763073043430,-1464.49,0.00042868,30]
[393891575,1763073043439,-1220.41,0.00042868,30]
[393891577,1763073043449,-1017.01,0.00042868,30]
[393891579,1763073043458,-847.51,0.00042868,30]
[393891580,1763073043468,-706.26,0.00042868,30]
[393891581,1763073043477,-588.55,0.00042868,30]
[393891582,1763073043487,-29046.1259437,0.00042869,3]
[393891583,1763073043496,-999.0,0.00042877,120]
[393891584,1763073043506,-150.0,0.00042877,120]
[393891585,1763073043515,-500.0,0.00042878,31]
[393891587,1763073043526,-145230.629718,0.00042879,3]
[393891588,1763073043535,-777000.0,0.00042889,2]
[393891589,1763073043544,-250.0,0.00042963,2]
[393891590,1763073043554,-250.0,0.00042963,2]
[393891591,1763073043565,-250.0,0.00042963,2]
[393891592,1763073043574,-250.0,0.00042963,2]
[393891593,1763073043583,-250.0,0.00042963,2]
[393891594,1763073043594,-209.40437684,0.00042963,2]
[393891595,1763073043604,-457.383153,0.00042968,2]
[393891596,1763073043614,-178.328,0.00042999,66]
[393891597,1763073043625,-269.0,0.00043024,2]
[393891598,1763073043635,-3622.28809231,0.00043071,2]
[393891599,1763073043646,-2137.06696715,0.00043078,2]
[393891600,1763073043655,-500.0,0.00043152,31]
[393891601,1763073043664,-504.39231402,0.00043207,120]
[393891602,1763073043675,-317.98166249,0.00043207,120]
[393891603,1763073043683,-500.0,0.00043207,2]
[393891604,1763073043693,-500.0,0.00043207,2]
[393891605,1763073043702,-500.0,0.00043207,2]
[393891606,1763073043713,-500.0,0.00043207,2]
[393891607,1763073043726,-500.0,0.00043207,2]
[393891608,1763073043735,-500.0,0.00043207,2]
[393891609,1763073043745,-500.0,0.00043207,2]
[393891610,1763073043755,-500.0,0.00043207,2]
[393891611,1763073043765,-500.0,0.00043207,2]
[393891612,1763073043776,-310.02235109,0.00043207,2]
[393891613,1763073043786,-63433.4761,0.0004322,30]
[393891614,1763073043795,-2137.06696715,0.00043302,2]
[393891615,1763073043804,-162.0,0.00043345,120]
[393891616,1763073043814,-500.0,0.00043426,31]
[393891617,1763073043823,-217.15233878,0.00043511,2]
[393891618,1763073043833,-3622.28809231,0.00043546,2]
[393891619,1763073043842,-3622.28809231,0.00043629,2]
[393891620,1763073043851,-500.0,0.000437,31]
[393891621,1763073043861,-2137.06696715,0.00043811,2]
[393891622,1763073043870,-3622.28809231,0.00043965,2]
[393891623,1763073043879,-500.0,0.00043974,31]
[393891624,1763073043888,-500.0,0.00043988,10]
[393891625,1763073043897,-500.0,0.00044035,7]
[393891626,1763073043906,-160.0,0.00044055,2]
[393891627,1763073043915,-225.18697532,0.00044059,2]
[393891628,1763073043925,-2137.06696715,0.00044067,2]
[393891629,1763073043935,-500.0,0.00044091,10]
[393891630,1763073043944,-642.48705295,0.00044091,10]
[393891631,1763073043953,-436.91889846,0.00044091,10]
[393891632,1763073043962,-501.73645282,0.00044091,10]
[393891633,1763073043971,-500.51404501,0.00044144,10]
[393891634,1763073043981,-503.45367496,0.00044144,10]
[393891635,1763073043990,-505.76688572,0.00044144,10]
[393891636,1763073043999,-500.0,0.00044144,10]
[393891637,1763073044009,-500.0,0.00044144,10]
[393891638,1763073044019,-231.03472063,0.00044144,10]
[393891639,1763073044028,-577.71772446,0.00044144,10]
[393891640,1763073044038,-563.55050698,0.00044144,10]
[393891641,1763073044046,-500.0,0.00044144,10]
[393891642,1763073044055,-158.33784733,0.00044144,10]
[393891643,1763073044065,-500.0,0.00044144,10]
[393891644,1763073044074,-500.0,0.00044144,10]
[393891645,1763073044183,-2137.06696715,0.00044171,2]
[393891646,1763073044192,-225.6286586,0.00044248,31]
[393891647,1763073044202,-3622.28809231,0.00044287,2]
[393891648,1763073044211,-500.0,0.00044527,10]
[393891649,1763073044220,-500.0,0.00044527,10]
[393891650,1763073044229,-500.0,0.00044527,10]
[393891651,1763073044238,-500.0,0.00044527,10]
[393891652,1763073044247,-170.49059877,0.00044527,10]
[393891653,1763073044258,-150.35031034,0.00044583,7]
[393891654,1763073044269,-260.0,0.00044602,2]
[393891655,1763073044277,-233.51889341,0.00044607,2]
[393891656,1763073044287,-2137.06696715,0.00044627,2]